bitfinex-derivatives/quotes_ETHF0:USTF0_20250428
["timestamp","ask_amount","ask_price","bid_price","bid_amount"]
[1745833503053,1.5823,1812.0,1811.8,2.74441]
[1745833503267,2.68569,1812.0,1811.9,1.6549]
[1745833503461,2.77331217,1812.0,1811.9,2.4722]
[1745833503664,2.77331086,1812.0,1811.9,2.4722]
[1745833504256,2.77331086,1812.0,1811.9,6.2742]
[1745833506861,2.77331627,1812.0,1811.9,6.2742]
[1745833507057,2.77331627,1812.0,1811.9,2.4722]
[1745833508359,2.773301,1812.0,1811.9,2.4722]
[1745833508560,5.981101,1812.0,1811.9,2.4722]
[1745833508761,2.773301,1812.0,1811.9,2.4722]
[1745833509962,2.77330846,1812.0,1811.9,2.4722]
[1745833510159,1.19100846,1812.0,1811.9,2.4722]
[1745833510364,5.90593,1812.2,1811.9,3.57566]
[1745833510558,1.10333,1812.1,1812.0,3.60874]
[1745833511064,1.10333,1812.1,1812.0,7.41074]
[1745833511871,4.8026,1812.2,1812.1,1.10333]
[1745833512165,3.2078,1812.2,1812.1,2.77143]
[1745833512367,2.6016,1812.4,1812.1,4.8759]
[1745833512565,1.19085306,1812.3,1812.2,3.61195]
[1745833512759,1.19085306,1812.3,1812.2,3.61197]
[1745833512961,1.10325,1812.3,1812.2,3.61197]
[1745833513267,1.19085563,1812.3,1812.2,3.61197]
[1745833514267,1.10325,1812.3,1812.2,7.41397]
[1745833514968,1.10325,1812.3,1812.2,6.3107]
[1745833515167,1.19085482,1812.3,1812.2,6.3107]
[1745833515575,1.19085482,1812.3,1812.2,3.802]
[1745833515770,3.62135482,1812.3,1812.2,3.802]
[1745833516068,3.53375,1812.3,1812.2,3.802]
[1745833516272,1.10333,1812.1,1812.0,2.4481]
[1745833516571,1.10333,1812.1,1812.0,3.55149]
[1745833516762,1.10333,1812.1,1812.0,2.4481]
[1745833517164,1.10333,1812.1,1812.0,6.2501]
[1745833517368,1.19094624,1812.1,1812.0,3.802]
[1745833517969,2.83024624,1812.1,1812.0,3.802]
[1745833518159,1.10346,1811.9,1811.8,3.5516]
[1745833518361,1.10346,1811.9,1811.8,2.4481]
[1745833518568,1.10346,1811.9,1811.8,3.55162]
[1745833519068,1.10358,1811.7,1811.6,40.8]
[1745833519276,5.96673,1811.8,1811.4,1.7216]
[1745833519575,1.1037,1811.5,1811.4,1.7216]
[1745833519874,1.1037,1811.5,1811.4,42.5216]
[1745833520374,3.60449,1811.6,1811.5,1.1037]
[1745833520671,3.60449,1811.6,1811.5,2.8253]
[1745833522068,3.60449,1811.6,1811.5,1.7216]
[1745833523275,3.60449,1811.6,1811.5,2.8253]
[1745833523475,1.10369,1811.6,1811.5,2.8253]
[1745833524075,1.10369,1811.6,1811.5,6.6273]
[1745833524578,1.1036,1811.8,1811.7,1.10353]
[1745833525176,1.1036,1811.8,1811.7,48.16003]
[1745833525874,0.8596,1811.9,1811.8,1.10352]
[1745833526073,0.8596,1811.9,1811.8,6.52182]
[1745833526278,1.96306,1811.9,1811.8,6.52182]
[1745833526678,4.31122,1812.0,1811.9,1.10346]
[1745833526979,4.39879844,1812.0,1811.9,2.4723]
[1745833527478,6.08529844,1812.0,1811.9,3.57576]
[1745833527682,6.08526415,1812.0,1811.9,3.57576]
[1745833527871,5.99769,1812.0,1811.9,2.4723]
[1745833528066,5.99769,1812.0,1811.9,3.57576]
[1745833528471,5.99769,1812.0,1811.9,2.4723]
[1745833528671,6.08527483,1812.0,1811.9,2.4723]
[1745833528870,4.98188785,1812.0,1811.9,3.57576]
[1745833529080,4.8943,1812.0,1811.9,3.57576]
[1745833529673,4.98189619,1812.0,1811.9,3.57576]
[1745833529875,4.98189724,1812.0,1811.9,3.57576]
[1745833530277,4.8943,1812.0,1811.9,3.57576]
[1745833530570,3.2078,1812.0,1811.9,3.57576]
[1745833531077,6.04003,1812.3,1812.2,1.10327]
[1745833531279,5.83019863,1812.3,1812.2,1.10327]
[1745833531480,6.93340863,1812.3,1812.2,1.10327]
[1745833531880,6.93340863,1812.3,1812.1,1.5996]
[1745833532073,0.08759863,1812.2,1812.1,1.5996]
[1745833532467,0.08759863,1812.2,1812.1,42.3996]
[1745833532676,2.91986863,1812.2,1812.1,42.3996]
[1745833532877,1.81659863,1812.2,1812.1,42.3996]
[1745833533382,2.91986863,1812.2,1812.1,42.3996]
[1745833534381,2.91986863,1812.2,1812.1,40.8]
[1745833534577,1.10339,1812.1,1811.9,3.65775]
[1745833534776,2.80429,1812.1,1811.9,3.65775]
[1745833534976,2.80429,1812.1,1812.0,40.8]
[1745833535182,2.89191052,1812.1,1812.0,41.90339]
[1745833535380,1.78852052,1812.1,1812.0,43.60169]
[1745833535568,2.89185052,1812.1,1812.0,43.60169]
[1745833535775,2.80423,1812.1,1812.0,43.60169]
[1745833535974,2.89184022,1812.1,1812.0,43.60169]
[1745833536276,2.89184022,1812.1,1812.0,42.4983]
[1745833536584,2.80423,1812.1,1812.0,42.4983]
[1745833536767,2.89183628,1812.1,1812.0,42.4983]
[1745833536974,2.89183628,1812.1,1812.0,40.8]
[1745833537173,3.70813628,1812.1,1812.0,40.8]
[1745833537476,3.70813401,1812.1,1812.0,40.8]
[1745833538077,2.60479917,1812.1,1811.9,2.5121]
[1745833538280,2.75878,1811.9,1811.7,1.10357]
[1745833538481,1.10357,1811.8,1811.7,1.6561]
[1745833538682,1.10357,1811.8,1811.7,42.4561]
[1745833538883,2.88895986,1811.8,1811.7,42.4561]
[1745833539878,2.88895986,1811.8,1811.7,40.8]
[1745833540187,2.88895986,1811.8,1811.2,2.75968]
[1745833540188,2.7591,1811.6,1811.1,10.15973]
[1745833540482,4.31167,1811.3,1811.2,2.4485]
[1745833540687,4.31167,1811.3,1811.2,43.2485]
[1745833541279,5.26644439,1811.3,1811.2,43.2485]
[1745833541482,5.26644439,1811.3,1811.2,44.35238]
[1745833541987,5.17887,1811.3,1811.2,43.2485]
[1745833542188,5.17887,1811.3,1811.2,47.0505]
[1745833543189,1.97107,1811.3,1811.2,47.0505]
[1745833544877,1.97107,1811.3,1811.2,48.15438]
[1745833545080,1.97107,1811.3,1811.2,47.0505]
[1745833546185,5.26646708,1811.3,1811.2,3.802]
[1745833546384,10.26646708,1811.3,1811.2,3.802]
[1745833546588,10.26646708,1811.3,1811.2,2.5406]
[1745833547185,10.26646708,1811.3,1810.9,1.7402]
[1745833547186,1.104,1811.0,1810.9,1.7402]
[1745833547387,1.19159127,1811.0,1810.9,1.7402]
[1745833547787,2.78639127,1811.0,1810.9,1.7402]
[1745833548784,2.7863968,1811.0,1810.9,1.7402]
[1745833549093,4.31176,1811.1,1811.0,1.104]
[1745833549287,4.39936947,1811.1,1811.0,0.8091]
[1745833549592,4.39936594,1811.1,1811.0,2.4073]
[1745833549791,4.39936563,1811.1,1811.0,2.4073]
[1745833550182,4.39936563,1811.1,1811.0,5.4002]
[1745833550383,4.39936363,1811.1,1811.0,5.4002]
[1745833551189,4.31176,1811.1,1811.0,5.4002]
[1745833551389,4.3993608,1811.1,1811.0,5.4002]
[1745833551998,4.31176,1811.1,1811.0,5.4002]
[1745833552289,4.31176,1811.1,1811.0,6.5042]
[1745833552691,4.31176,1811.1,1811.0,5.4002]
[1745833553188,4.31176,1811.1,1811.0,6.2226]
[1745833554994,4.39936392,1811.1,1811.0,6.2226]
[1745833555194,4.31176,1811.1,1811.0,2.4206]
[1745833555797,4.39936302,1811.1,1811.0,2.4206]
[1745833558295,4.39935787,1811.1,1811.0,2.4206]
[1745833558997,6.06725787,1811.1,1811.0,2.4206]
[1745833559596,4.39935838,1811.1,1811.0,3.5246]
[1745833559896,4.31176,1811.1,1811.0,3.5246]
[1745833560198,4.31176,1811.1,1811.0,7.3266]
[1745833560898,4.31176,1811.1,1811.0,3.802]
[1745833561085,4.39933813,1811.1,1811.0,3.802]
[1745833561286,1.10413,1810.8,1810.7,3.3424]
[1745833561488,1.10413,1810.8,1810.7,2.72739]
[1745833561889,1.10413,1810.8,1810.7,1.6232]
[1745833562090,1.10413,1810.8,1810.7,5.4252]
[1745833562290,1.10413,1810.8,1810.7,4.6367]
[1745833562699,2.87017676,1810.8,1810.7,45.4367]
[1745833563198,2.87017676,1810.8,1810.7,0.8347]
[1745833563795,0.08753981,1810.8,1810.7,1.93889]
[1745833563996,1.10413,1810.8,1810.7,1.93889]
[1745833564194,1.10413,1810.8,1810.7,5.74089]
[1745833564890,1.10413,1810.8,1810.7,4.6367]
[1745833567799,1.10413,1810.8,1810.7,5.74089]
[1745833568000,1.10413,1810.8,1810.7,4.6367]
[1745833568191,1.10413,1810.8,1810.7,5.74089]
[1745833568691,1.10413,1810.8,1810.7,4.6367]
[1745833569100,1.10413,1810.8,1810.7,5.74089]
[1745833570596,1.10413,1810.8,1810.7,4.6367]
[1745833570799,1.10413,1810.8,1810.7,5.74089]
[1745833571699,1.10413,1810.8,1810.7,4.6367]
[1745833573292,1.10413,1810.8,1810.7,3.802]
[1745833573492,3.65655408,1810.8,1810.7,3.802]
[1745833573698,8.65655408,1810.8,1810.7,3.802]
[1745833574095,1.10442,1810.4,1810.2,41.90447]
[1745833574296,1.10442,1810.4,1810.3,0.8689]
[1745833574491,1.1919233,1810.4,1810.3,0.8689]
[1745833574706,1.10442,1810.4,1810.3,0.8689]
[1745833574896,4.399721,1810.4,1810.3,0.8689]
[1745833575097,2.76108,1810.3,1809.4,5.97023]
[1745833575298,3.2078,1810.1,1809.5,1.7027]
[1745833575591,1.10473,1809.9,1809.6,1.1048]
[1745833575795,1.10473,1809.9,1809.7,1.10479]
[1745833576106,1.10473,1809.9,1809.7,4.90679]
[1745833576406,2.4711,1810.0,1809.7,3.802]
[1745833576608,0.08748151,1809.9,1809.8,1.10474]
[1745833576807,0.08748151,1809.9,1809.7,4.90675]
[1745833577007,1.10474,1809.8,1809.7,3.802]
[1745833577310,2.78034,1809.8,1809.7,3.802]
[1745833578506,1.6756,1809.8,1809.7,4.9068]
[1745833578807,1.89806,1810.0,1809.8,1.10473]
[1745833579002,0.08747896,1809.9,1809.8,2.78784]
[1745833579206,3.55776,1810.0,1809.8,3.58914]
[1745833579406,3.55776,1810.0,1809.9,1.6831]
[1745833579708,3.64524306,1810.0,1809.9,1.6831]
[1745833580310,4.31241,1810.1,1809.9,6.58977]
[1745833580606,1.10461,1810.1,1809.9,6.58977]
[1745833580807,1.10461,1810.1,1810.0,1.6831]
[1745833581209,1.10461,1810.1,1810.0,5.4851]
[1745833582404,2.73731,1810.1,1810.0,5.4851]
[1745833587112,2.82472324,1810.1,1810.0,5.4851]
[1745833587719,2.73731,1810.1,1810.0,5.4851]
[1745833587918,2.82473981,1810.1,1810.0,5.4851]
[1745833588115,2.76047,1810.7,1810.1,2.76135]
[1745833588314,2.4906,1810.6,1810.3,3.2078]
[1745833588520,1.10443,1810.3,1810.2,1.6726]
[1745833588713,4.0159,1810.6,1810.2,42.4726]
[1745833588919,4.0159,1810.6,1810.5,1.10431]
[1745833589221,5.12015,1810.6,1810.3,2.4676]
[1745833589419,1.10431,1810.5,1810.4,1.6726]
[1745833590018,2.78681,1810.5,1810.4,1.6726]
[1745833590219,2.78681,1810.5,1810.4,5.4746]
[1745833593208,4.0159,1810.6,1810.4,5.4746]
[1745833593410,1.10408,1810.9,1810.8,1.10412]
[1745833593625,4.31184,1811.0,1810.8,1.10412]
[1745833594119,4.31184,1811.0,1810.9,1.6706]
[1745833594315,4.31184,1811.0,1810.9,2.4805]
[1745833594720,1.10404,1811.0,1810.9,2.4805]
[1745833595221,3.58056,1811.1,1811.0,1.104]
[1745833595418,1.94166,1811.1,1811.0,2.765]
[1745833595816,0.8377,1811.1,1811.0,2.765]
[1745833596214,0.8377,1811.1,1811.0,6.567]
[1745833596720,1.10385,1811.3,1811.1,1.10391]
[1745833596917,4.31165,1811.3,1811.1,2.76491]
[1745833597215,1.10387,1811.3,1811.1,2.76491]
[1745833597422,2.68477,1811.3,1811.2,1.7217]
[1745833597721,0.7953,1811.4,1811.0,3.802]
[1745833597928,1.5809,1811.3,1811.0,5.5237]
[1745833598221,1.10388,1811.2,1811.1,1.7217]
[1745833599132,1.10399,1811.1,1810.9,1.91395]
[1745833599427,1.10399,1811.1,1811.0,1.7217]
[1745833600124,1.10413,1810.8,1810.7,3.2078]
[1745833600426,1.10413,1810.8,1810.7,4.9295]
[1745833600726,1.10413,1810.8,1810.7,6.03369]
[1745833601122,2.81821,1810.9,1810.7,6.03369]
[1745833601424,2.81821,1810.9,1810.8,1.7181]
[1745833604230,2.81821,1810.9,1810.8,5.5201]
[1745833604530,11.02601,1810.9,1810.8,3.71457019]
[1745833605218,1.10431,1810.5,1810.4,3.58536]
[1745833605735,1.10431,1810.5,1810.4,2.481]
[1745833606631,2.80521,1810.5,1810.4,2.481]
[1745833608030,2.80521,1810.5,1810.4,3.58537]
[1745833608227,2.80521,1810.5,1810.4,2.481]
[1745833608537,2.80521,1810.5,1810.4,3.58537]
[1745833608932,2.80521,1810.5,1810.4,2.481]
[1745833609439,2.80521,1810.5,1810.4,3.58537]
[1745833609633,2.80521,1810.5,1810.4,2.481]
[1745833610135,2.80521,1810.5,1810.4,6.283]
[1745833611124,2.80521,1810.5,1810.4,3.58537]
[1745833611735,2.80521,1810.5,1810.4,2.481]
[1745833613134,2.80521,1810.5,1810.4,6.283]
[1745833613537,2.80521,1810.5,1810.4,7.38737]
[1745833615635,1.7009,1810.5,1810.4,7.38737]
[1745833616338,1.10431,1810.5,1810.4,7.38737]
[1745833618735,3.6116,1810.6,1810.5,1.10431]
[1745833618939,3.6116,1810.6,1810.5,2.74811]
[1745833619135,3.6116,1810.6,1810.5,1.6438]
[1745833619337,3.6116,1810.6,1810.5,2.74811]
[1745833620635,3.6116,1810.6,1810.5,1.6438]
[1745833620936,3.6116,1810.6,1810.5,2.74811]
[1745833621330,3.6116,1810.6,1810.5,1.6438]
[1745833622133,1.10409,1810.9,1810.8,1.10407]
[1745833622735,1.10409,1810.9,1810.8,2.69847]
[1745833623134,1.10409,1810.9,1810.8,6.50047]
[1745833623335,1.10409,1810.9,1810.8,5.3964]
[1745833623538,1.91229,1810.9,1810.8,5.3964]
[1745833626248,1.91229,1810.9,1810.8,1.5944]
[1745833627644,3.48949,1810.9,1810.8,1.5944]
[1745833629050,2.76032,1810.8,1810.4,1.10436]
[1745833629344,1.10427,1810.6,1810.5,1.10428]
[1745833629547,8.42622,1810.8,1810.3,12.02562]
[1745833629548,1.10421,1810.7,1810.6,1.10421]
[1745833629741,4.6102,1810.9,1810.6,2.7606]
[1745833629936,5.71429,1810.9,1810.8,1.10413]
[1745833630148,1.10409,1810.9,1810.8,4.90613]
[1745833630542,4.31181,1811.0,1810.9,1.10406]
[1745833630845,4.31181,1811.0,1810.9,1.6457]
[1745833631042,4.31181,1811.0,1810.9,2.74976]
[1745833631237,4.31181,1811.0,1810.9,6.55176]
[1745833631443,4.3118,1811.0,1810.9,6.55176]
[1745833632048,1.104,1811.0,1810.9,6.55176]
[1745833634352,1.104,1811.0,1810.9,3.802]
[1745833635153,1.104,1811.0,1810.9,2.80226]
[1745833635648,1.104,1811.0,1810.9,6.01006]
[1745833635855,1.104,1811.0,1810.9,2.80226]
[1745833636158,1.104,1811.0,1810.9,6.60426]
[1745833636758,1.104,1811.0,1810.9,5.5002]
[1745833636954,2.80799,1811.1,1810.9,6.60424]
[1745833637949,1.104,1811.0,1810.9,5.5002]
[1745833638149,1.104,1811.0,1810.9,1.6982]
[1745833638150,2.808,1811.0,1810.9,1.6982]
[1745833638442,1.10406,1810.9,1810.8,1.10413]
[1745833638648,2.5113,1810.9,1810.8,1.10413]
[1745833638847,0.8073,1810.9,1810.8,2.73383]
[1745833639053,2.80797,1811.1,1810.8,1.6297]
[1745833639362,3.61527,1811.1,1811.0,1.104]
[1745833639555,3.61529,1811.1,1810.8,8.19201]
[1745833639853,3.61529,1811.1,1811.0,1.104]
[1745833641755,2.5113,1811.1,1811.0,1.104]
[1745833641955,3.61524,1811.1,1811.0,1.104]
[1745833642548,2.5113,1811.1,1811.0,1.104]
[1745833642754,3.61524,1811.1,1811.0,1.104]
[1745833643258,6.82304,1811.1,1811.0,4.906]
[1745833643657,3.61524,1811.1,1811.0,4.906]
[1745833643964,3.61524,1811.1,1811.0,3.802]
[1745833644145,3.61524,1811.1,1810.9,2.73376]
[1745833644957,2.7885,1811.0,1810.9,2.73376]
[1745833645258,2.7885,1811.0,1810.9,5.4317]
[1745833645559,2.7885,1811.0,1810.9,6.53576]
[1745833646152,2.7885,1811.0,1810.9,3.802]
[1745833646458,8.589,1811.0,1810.9,3.802]
[1745833647153,1.10425,1810.6,1810.5,1.6489]
[1745833647956,1.10425,1810.6,1810.5,2.75321]
[1745833649058,1.10425,1810.6,1810.5,2.75316]
[1745833649253,1.10425,1810.6,1810.5,6.55516]
[1745833651353,1.10425,1810.6,1810.5,5.4509]
[1745833651556,2.78365,1810.6,1810.5,5.4509]
[1745833652063,2.78365,1810.6,1810.5,6.55521]
[1745833654064,2.78365,1810.6,1810.5,5.4509]
[1745833654963,2.78365,1810.6,1810.5,6.55521]
[1745833655164,2.78365,1810.6,1810.5,2.75321]
[1745833656171,2.78365,1810.6,1810.5,6.55521]
[1745833661464,1.6794,1810.6,1810.5,6.55521]
[1745833661671,1.10424,1810.7,1810.6,1.10425]
[1745833661972,4.31195,1810.8,1810.7,1.10419]
[1745833662163,4.31195,1810.8,1810.7,1.95309]
[1745833662365,4.31195,1810.8,1810.7,3.68049]
[1745833662767,1.10415,1810.8,1810.7,3.68049]
[1745833664270,1.10415,1810.8,1810.7,6.3783]
[1745833664463,2.82165,1810.8,1810.7,6.3783]
[1745833665061,2.82165,1810.8,1810.7,2.5763]
[1745833665471,3.69145,1810.8,1810.7,2.5763]
[1745833665871,1.10419,1810.7,1810.6,1.10423]
[1745833666073,2.82169,1810.7,1810.6,1.10423]
[1745833666575,1.10425,1810.6,1810.5,7.31757]
[1745833666875,2.5387,1810.6,1810.5,7.31757]
[1745833667770,3.64295,1810.6,1810.5,3.802]
[1745833668273,1.10431,1810.5,1810.4,4.31214]
[1745833668474,2.78201,1810.5,1810.4,4.31214]
[1745833668668,2.78201,1810.5,1810.4,6.05504]
[1745833668870,1.6777,1810.5,1810.4,6.05504]
[1745833669069,0.8212,1810.6,1810.5,1.10431]
[1745833669268,1.92545,1810.6,1810.5,2.84721]
[1745833669472,0.8212,1810.6,1810.5,2.84721]
[1745833669969,1.1042,1810.7,1810.6,1.10425]
[1745833670174,1.1042,1810.7,1810.6,3.67745]
[1745833670575,2.7278,1810.7,1810.6,3.67745]
[1745833670977,2.7278,1810.7,1810.6,2.5732]
[1745833675880,2.7278,1810.7,1810.6,3.67745]
[1745833678486,1.1042,1810.7,1810.6,3.67745]
[1745833678785,1.1042,1810.7,1810.6,4.54595]
[1745833682088,5.96779,1811.1,1810.7,1.10419]
[1745833682391,1.10408,1810.9,1810.8,2.83338]
[1745833682888,1.10408,1810.9,1810.8,1.7293]
[1745833683089,1.10408,1810.9,1810.8,2.83343]
[1745833683494,1.10397,1811.1,1811.0,1.10396]
[1745833684194,1.10397,1811.1,1811.0,1.5802]
[1745833684390,2.77257,1811.1,1811.0,1.5802]
[1745833684695,1.104,1811.0,1810.9,0.8551]
[1745833684889,1.10406,1810.9,1810.8,2.68431]
[1745833685193,1.89836,1810.9,1810.8,3.53941]
[1745833685395,0.7943,1810.9,1810.8,3.53941]
[1745833685593,1.10406,1810.9,1810.8,3.53941]
[1745833685895,1.10405,1811.0,1810.9,1.10405]
[1745833686200,2.70635,1811.0,1810.9,1.10405]
[1745833686383,2.70635,1811.0,1810.9,2.76955]
[1745833687288,2.70635,1811.0,1810.9,1.6655]
[1745833687487,1.10406,1810.9,1810.8,1.95918]
[1745833687691,2.70636,1810.9,1810.8,1.95918]
[1745833687880,2.70636,1810.9,1810.8,3.62468]
[1745833688795,0.7945,1811.1,1810.9,1.10401]
[1745833688992,1.104,1811.0,1810.9,2.83081]
[1745833689492,2.765,1811.0,1810.9,2.83081]
[1745833689893,1.10406,1810.9,1810.8,1.95921]
[1745833690487,1.10406,1810.9,1810.8,3.68601]
[1745833690687,2.76506,1810.9,1810.8,3.68601]
[1745833694989,1.661,1810.9,1810.8,3.68601]
[1745833695194,1.10406,1811.0,1810.9,1.10403]
[1745833695493,1.10406,1811.0,1810.9,2.72853]
[1745833696088,2.73366,1811.0,1810.9,1.6245]
[1745833696288,2.73366,1811.0,1810.9,2.72856]
[1745833697399,2.73366,1811.0,1810.9,1.10406]
[1745833698601,1.10406,1810.9,1810.8,3.68628]
[1745833698800,2.74456,1810.9,1810.8,3.68628]
[1745833700604,1.6405,1810.9,1810.8,3.68628]
[1745833702193,2.74456,1810.9,1810.8,3.68628]
[1745833702388,1.6405,1810.9,1810.8,3.68628]
[1745833703397,2.74456,1810.9,1810.8,3.68628]
[1745833707895,1.10406,1810.9,1810.8,3.68628]
[1745833710500,10.96797,1810.9,1810.2,3.2078]
[1745833710704,6.3794,1811.2,1810.3,1.7073]
[1745833710705,4.31217,1810.4,1810.3,1.7073]
[1745833710893,4.31217,1810.4,1809.9,4.0285]
[1745833710894,1.10455,1810.1,1810.0,0.8386]
[1745833711096,4.31234,1810.2,1810.0,3.6505]
[1745833711298,0.8047,1810.3,1810.2,1.10449]
[1745833711503,3.2078,1810.5,1810.1,1.7073]
[1745833711698,3.2078,1810.5,1810.1,2.81182]
[1745833711904,1.10446,1810.3,1810.1,2.81182]
[1745833712103,1.10446,1810.3,1810.2,1.7073]
[1745833712304,1.6089,1810.4,1810.2,2.81179]
[1745833712605,1.10443,1810.3,1810.2,2.81179]
[1745833712805,1.10443,1810.3,1810.2,1.10449]
[1745833713410,1.10443,1810.3,1810.1,1.1045]
[1745833714605,1.10449,1810.2,1810.1,1.1045]
[1745833715005,1.10449,1810.2,1810.0,8.11437]
[1745833715208,1.10455,1810.1,1810.0,3.802]
[1745833715609,1.10455,1810.1,1810.0,4.90661]
[1745833715908,0.8716,1810.3,1810.0,3.802]
[1745833716097,1.10455,1810.1,1810.0,4.90659]
[1745833716301,1.10454,1810.2,1810.1,1.10455]
[1745833716501,1.10455,1810.1,1810.0,3.802]
[1745833716706,2.70515,1810.1,1810.0,3.802]
[1745833717109,1.10466,1810.0,1809.8,0.8498]
[1745833717310,3.63271,1810.3,1809.8,0.8498]
[1745833717311,3.63271,1810.3,1809.8,1.95449]
[1745833717502,1.10461,1810.1,1809.9,1.10463]
[1745833717703,0.8716,1810.3,1809.9,3.2078]
[1745833718009,1.10444,1810.3,1810.1,1.1045]
[1745833718306,3.2078,1810.4,1810.3,1.10443]
[1745833719109,4.31219,1810.4,1810.3,4.90643]
[1745833719301,4.31219,1810.4,1810.3,3.802]
[1745833720105,3.2078,1810.4,1810.3,4.90643]
[1745833720615,3.2078,1810.7,1810.5,1.10431]
[1745833720801,4.0132,1810.7,1810.5,1.10431]
[1745833720999,1.6951,1810.8,1810.6,1.10425]
[1745833721201,1.6182,1810.9,1810.7,1.10414]
[1745833721400,2.5005,1810.9,1810.7,1.10414]
[1745833721606,2.5005,1810.9,1810.6,3.2078]
[1745833721914,2.5005,1810.9,1810.8,1.10413]
[1745833722210,2.5005,1810.9,1810.7,1.10414]
[1745833722410,2.5005,1810.9,1810.8,40.8]
[1745833723205,3.60456,1810.9,1810.8,40.8]
[1745833723410,11.5404,1810.9,1810.8,40.8]
[1745833723610,6.5404,1810.9,1810.8,40.8]
[1745833724412,6.5404,1810.9,1810.8,41.90413]
[1745833726913,7.64446,1810.9,1810.8,41.90413]
[1745833728919,7.64446,1810.9,1810.8,40.8]
[1745833729218,6.81236,1810.9,1810.8,40.8]
[1745833729607,6.81236,1810.9,1810.8,42.3952]
[1745833731013,6.81236,1810.9,1810.8,43.2417]
[1745833731819,3.60456,1810.9,1810.8,43.2417]
[1745833732617,3.2078,1811.0,1810.9,1.10406]
[1745833732812,1.104,1811.0,1810.9,2.80546]
[1745833733012,1.104,1811.0,1810.9,3.62936]
[1745833733213,1.10399,1811.1,1811.0,1.104]
[1745833733413,1.10399,1811.1,1811.0,2.8054]
[1745833734316,1.10399,1811.1,1811.0,6.6074]
[1745833734917,1.10399,1811.1,1811.0,5.5034]
[1745833735118,1.10399,1811.1,1811.0,2.8054]
[1745833735319,1.10399,1811.1,1811.0,1.7014]
[1745833735621,1.10399,1811.1,1811.0,2.8054]
[1745833737624,1.10399,1811.1,1811.0,1.7014]
[1745833737824,1.10399,1811.1,1811.0,2.8054]
[1745833738431,1.10399,1811.1,1811.0,1.7014]
[1745833739121,2.72869,1811.1,1810.8,42.7506]
[1745833739316,0.8121,1811.0,1810.9,2.68326]
[1745833740015,1.9161,1811.0,1810.9,2.68326]
[1745833740216,1.104,1811.0,1810.9,3.52396]
[1745833740814,1.104,1811.0,1810.9,2.4199]
[1745833741425,2.769,1811.0,1810.9,2.4199]
[1745833741814,2.769,1811.0,1810.9,3.52396]
[1745833742619,2.769,1811.0,1810.9,2.4199]
[1745833742817,2.769,1811.0,1810.9,3.52396]
[1745833743727,1.104,1811.0,1810.9,3.52396]
[1745833743927,1.10398,1811.1,1811.0,1.10394]
[1745833744127,1.10398,1811.1,1811.0,2.70644]
[1745833745129,1.10398,1811.1,1811.0,6.50844]
[1745833746129,6.83643,1811.2,1811.1,1.10394]
[1745833746331,6.83643,1811.2,1811.1,3.54384]
[1745833746926,6.83643,1811.2,1811.1,2.4399]
[1745833747121,6.83643,1811.2,1811.1,3.54384]
[1745833750333,6.83643,1811.2,1811.1,2.67564]
[1745833750526,6.83643,1811.2,1811.1,1.5717]
[1745833750729,6.83643,1811.2,1811.1,1.10394]
[1745833752331,6.83643,1811.2,1811.1,2.74684]
[1745833754836,6.83643,1811.2,1811.1,1.6429]
[1745833757626,5.14923,1811.2,1811.1,2.74684]
[1745833757928,1.10378,1811.4,1811.3,1.10377]
[1745833758123,1.10375,1811.5,1811.4,1.10374]
[1745833758334,1.10375,1811.5,1811.4,3.71834]
[1745833758538,2.82228,1811.6,1811.5,1.1037]
[1745833758730,3.62689,1811.7,1811.6,1.10364]
[1745833758731,1.97144,1811.7,1811.6,1.10364]
[1745833758932,1.10364,1811.6,1811.5,6.84355]
[1745833759130,1.10364,1811.6,1811.5,5.10005]
[1745833759828,1.10364,1811.6,1811.5,4.31145]
[1745833760033,2.82224,1811.6,1811.5,4.31145]
[1745833760232,2.82224,1811.6,1811.5,7.0098]
[1745833761255,2.82224,1811.6,1811.5,3.2078]
[1745833763042,2.82224,1811.6,1811.5,4.3115]
[1745833763234,2.82224,1811.6,1811.5,8.1135]
[1745833764240,2.82224,1811.6,1811.5,4.3115]
[1745833765239,2.82224,1811.6,1811.5,8.1135]
[1745833765540,2.82224,1811.6,1811.5,7.0098]
[1745833765743,2.82224,1811.6,1811.5,8.1135]
[1745833766035,2.82224,1811.6,1811.5,7.0098]
[1745833766243,2.82224,1811.6,1811.5,4.3115]
[1745833766543,2.82224,1811.6,1811.5,3.2078]
[1745833766742,2.82224,1811.6,1811.5,4.3115]
[1745833766942,2.82224,1811.6,1811.5,3.2078]
[1745833767146,2.82224,1811.6,1811.5,4.3115]
[1745833767343,1.10382,1811.3,1811.2,4.31168]
[1745833767544,1.10382,1811.3,1811.2,5.14068]
[1745833768340,2.76432,1811.3,1811.2,5.14068]
[1745833769141,2.76432,1811.3,1811.2,8.94268]
[1745833770342,2.76432,1811.3,1811.2,5.14068]
[1745833770842,2.76432,1811.3,1811.2,4.0368]
[1745833772142,2.76432,1811.3,1811.2,7.8388]
[1745833773342,2.76432,1811.3,1811.2,4.0368]
[1745833776346,2.76432,1811.3,1811.2,5.14068]
[1745833776640,0.8281,1811.4,1811.2,4.0368]
[1745833776847,1.10375,1811.5,1811.4,1.10373]
[1745833777040,1.10375,1811.5,1811.4,4.31153]
[1745833777239,1.10369,1811.6,1811.5,1.10367]